[Event "Titled Tuesday Blitz April 05 Early 2022"]
[White "Bashirli, Saadat"]
[Black "Horak, Martin"]
[WhiteFideId "13429990"]
[BlackFideId "367095"]
[WhiteElo "1173"]
[BlackElo "1997"]
[Result "0-1"]
[Round "02"]
[TimeControl "180+1"]
[Date "2022.04.05"]
[WhiteClock "0:00:21"]
[BlackClock "0:00:48"]

1. d4 {[%clk 0:03:00]}  Nf6 {[%clk 0:02:59]} 2. Bg5 {[%clk 0:02:57]}  d5 {[%clk 0:02:57]} 3. Nd2 {[%clk 0:02:55]}  c5 {[%clk 0:02:57]} 4. e3 {[%clk 0:02:53]}  Qb6 {[%clk 0:02:55]} 5. dxc5 {[%clk 0:02:40]}  Qxb2 {[%clk 0:02:45]} 6. Ngf3 {[%clk 0:02:30]}  e6 {[%clk 0:02:42]} 7. Nd4 {[%clk 0:02:26]}  a6 {[%clk 0:02:32]} 8. Bd3 {[%clk 0:02:19]}  Bxc5 {[%clk 0:02:25]} 9. N4b3 {[%clk 0:02:10]}  Be7 {[%clk 0:02:21]} 10. O-O {[%clk 0:02:08]}  O-O {[%clk 0:02:17]} 11. Qf3 {[%clk 0:02:02]}  Nc6 {[%clk 0:02:10]} 12. c4 {[%clk 0:01:55]}  Ne5 {[%clk 0:02:09]} 13. Qe2 {[%clk 0:01:52]}  Nxd3 {[%clk 0:02:04]} 14. Qxd3 {[%clk 0:01:53]}  Rd8 {[%clk 0:01:52]} 15. Rfb1 {[%clk 0:01:46]}  Qe5 {[%clk 0:01:45]} 16. Bf4 {[%clk 0:01:40]}  Qh5 {[%clk 0:01:45]} 17. cxd5 {[%clk 0:01:31]}  Nxd5 {[%clk 0:01:43]} 18. Qc4 {[%clk 0:01:28]}  b5 {[%clk 0:01:38]} 19. Qe4 {[%clk 0:01:26]}  Bb7 {[%clk 0:01:14]} 20. Qc2 {[%clk 0:01:24]}  Nxf4 {[%clk 0:01:13]} 21. exf4 {[%clk 0:01:23]}  Rac8 {[%clk 0:01:14]} 22. Qd1 {[%clk 0:01:21]}  Qg6 {[%clk 0:01:10]} 23. Qf1 {[%clk 0:01:17]}  Bf6 {[%clk 0:01:10]} 24. Na5 {[%clk 0:01:11]}  Bd5 {[%clk 0:01:07]} 25. Kh1 {[%clk 0:01:02]}  Bxa1 {[%clk 0:01:04]} 26. Rxa1 {[%clk 0:01:00]}  Qxg2+ {[%clk 0:01:05]} 27. Qxg2 {[%clk 0:00:57]}  Bxg2+ {[%clk 0:01:06]} 28. Kxg2 {[%clk 0:00:58]}  Rxd2 {[%clk 0:01:07]} 29. Re1 {[%clk 0:00:54]}  g6 {[%clk 0:01:06]} 30. Nb3 {[%clk 0:00:52]}  Rxa2 {[%clk 0:01:05]} 31. Nd4 {[%clk 0:00:51]}  Rc4 {[%clk 0:01:05]} 32. Nf3 {[%clk 0:00:49]}  Rxf4 {[%clk 0:01:04]} 33. Rc1 {[%clk 0:00:46]}  Kg7 {[%clk 0:01:01]} 34. Rc7 {[%clk 0:00:44]}  b4 {[%clk 0:00:55]} 35. Ne5 {[%clk 0:00:42]}  Rfxf2+ {[%clk 0:00:50]} 36. Kg3 {[%clk 0:00:40]}  Rf5 {[%clk 0:00:51]} 37. Nc4 {[%clk 0:00:38]}  Rc2 {[%clk 0:00:50]} 38. Nd6 {[%clk 0:00:33]}  Rxc7 {[%clk 0:00:48]} 39. Ne8+ {[%clk 0:00:32]}  Kf8 {[%clk 0:00:48]} 40. Nxc7 {[%clk 0:00:33]}  b3 {[%clk 0:00:48]} 41. Nxa6 {[%clk 0:00:33]}  b2 {[%clk 0:00:49]} 42. Nb8 {[%clk 0:00:30]}  b1=Q {[%clk 0:00:48]} 43. Nd7+ {[%clk 0:00:31]}  Kg7 {[%clk 0:00:48]} 44. h4 {[%clk 0:00:27]}  Qd3+ {[%clk 0:00:47]} 45. Kg4 {[%clk 0:00:24]}  Qe4+ {[%clk 0:00:46]} 46. Kg3 {[%clk 0:00:23]}  Rf3+ {[%clk 0:00:47]} 47. Kg2 {[%clk 0:00:22]}  Qe2+ {[%clk 0:00:47]} 48. Kg1 {[%clk 0:00:21]}  Rf1# {[%clk 0:00:48]} 0-1


[Site "https://www.chess.com"]

[Event "Titled Tuesday Blitz April 05 Early 2022"]
[White "Bettalli, Francesco"]
[Black "Bongo Akanga Ndjila, Barthelemy"]
[WhiteFideId "2816453"]
[BlackFideId "10609431"]
[WhiteElo "2216"]
[BlackElo "1768"]
[Result "1-0"]
[Round "02"]
[TimeControl "180+1"]
[Date "2022.04.05"]
[WhiteClock "0:00:04"]
[BlackClock "0:00:27"]

1. d4 {[%clk 0:03:00]}  Nf6 {[%clk 0:02:58]} 2. Nc3 {[%clk 0:03:01]}  g6 {[%clk 0:02:58]} 3. e4 {[%clk 0:03:01]}  d6 {[%clk 0:02:57]} 4. Bf4 {[%clk 0:03:01]}  Bg7 {[%clk 0:02:57]} 5. Qd2 {[%clk 0:03:02]}  c6 {[%clk 0:02:48]} 6. O-O-O {[%clk 0:02:57]}  Qc7 {[%clk 0:02:47]} 7. Bh6 {[%clk 0:02:55]}  O-O {[%clk 0:02:36]} 8. h4 {[%clk 0:02:54]}  Ng4 {[%clk 0:02:32]} 9. Bxg7 {[%clk 0:02:53]}  Kxg7 {[%clk 0:02:33]} 10. f3 {[%clk 0:02:53]}  Nf6 {[%clk 0:02:30]} 11. g4 {[%clk 0:02:51]}  h5 {[%clk 0:02:30]} 12. Bd3 {[%clk 0:01:59]}  hxg4 {[%clk 0:02:20]} 13. h5 {[%clk 0:01:59]}  Rh8 {[%clk 0:02:20]} 14. Qg5 {[%clk 0:01:51]}  Rxh5 {[%clk 0:02:09]} 15. Rxh5 {[%clk 0:01:49]}  Nxh5 {[%clk 0:02:09]} 16. fxg4 {[%clk 0:01:49]}  Nf6 {[%clk 0:02:09]} 17. e5 {[%clk 0:01:43]}  Nxg4 {[%clk 0:02:06]} 18. Rf1 {[%clk 0:01:25]}  dxe5 {[%clk 0:02:05]} 19. Nf3 {[%clk 0:00:36]}  exd4 {[%clk 0:01:58]} 20. Nxd4 {[%clk 0:00:36]}  Qe5 {[%clk 0:01:57]} 21. Bf5 {[%clk 0:00:14]}  Qe3+ {[%clk 0:01:48]} 22. Qxe3 {[%clk 0:00:14]}  Nxe3 {[%clk 0:01:49]} 23. Bxc8 {[%clk 0:00:14]}  Nxf1 {[%clk 0:01:48]} 24. Bxb7 {[%clk 0:00:15]}  Nd7 {[%clk 0:01:47]} 25. Bxa8 {[%clk 0:00:15]}  Ne5 {[%clk 0:01:46]} 26. Nxc6 {[%clk 0:00:15]}  Nd7 {[%clk 0:01:38]} 27. Nxe7 {[%clk 0:00:14]}  Nb6 {[%clk 0:01:37]} 28. Bg2 {[%clk 0:00:12]}  Ng3 {[%clk 0:01:37]} 29. Ned5 {[%clk 0:00:12]}  Nd7 {[%clk 0:01:36]} 30. Ne3 {[%clk 0:00:11]}  Ne5 {[%clk 0:01:35]} 31. b4 {[%clk 0:00:11]}  f5 {[%clk 0:01:35]} 32. a4 {[%clk 0:00:12]}  f4 {[%clk 0:01:35]} 33. Nf1 {[%clk 0:00:11]}  Nf5 {[%clk 0:01:34]} 34. Nh2 {[%clk 0:00:11]}  g5 {[%clk 0:01:33]} 35. Ne4 {[%clk 0:00:11]}  g4 {[%clk 0:01:33]} 36. Nd2 {[%clk 0:00:06]}  f3 {[%clk 0:01:33]} 37. Ndxf3 {[%clk 0:00:07]}  gxf3 {[%clk 0:01:33]} 38. Bxf3 {[%clk 0:00:07]}  Nxf3 {[%clk 0:01:33]} 39. Nxf3 {[%clk 0:00:08]}  Kf7 {[%clk 0:01:32]} 40. Kb2 {[%clk 0:00:08]}  Ke7 {[%clk 0:01:33]} 41. Kb3 {[%clk 0:00:09]}  Kd7 {[%clk 0:01:33]} 42. c4 {[%clk 0:00:09]}  Kc7 {[%clk 0:01:33]} 43. Kc3 {[%clk 0:00:10]}  Ne3 {[%clk 0:01:33]} 44. Nd4 {[%clk 0:00:11]}  Nd1+ {[%clk 0:01:30]} 45. Kd3 {[%clk 0:00:10]}  Nb2+ {[%clk 0:01:30]} 46. Ke4 {[%clk 0:00:10]}  Nxa4 {[%clk 0:01:31]} 47. Nb5+ {[%clk 0:00:10]}  Kb6 {[%clk 0:01:30]} 48. Kd5 {[%clk 0:00:10]}  Nb2 {[%clk 0:01:29]} 49. Nd6 {[%clk 0:00:08]}  Nd3 {[%clk 0:01:12]} 50. c5+ {[%clk 0:00:06]}  Kc7 {[%clk 0:01:09]} 51. Nb5+ {[%clk 0:00:05]}  Kb7 {[%clk 0:01:08]} 52. c6+ {[%clk 0:00:05]}  Kb6 {[%clk 0:01:02]} 53. c7 {[%clk 0:00:05]}  Kb7 {[%clk 0:01:02]} 54. Kd6 {[%clk 0:00:03]}  Nb2 {[%clk 0:00:31]} 55. Nxa7 {[%clk 0:00:03]}  Kxa7 {[%clk 0:00:31]} 56. c8=Q {[%clk 0:00:03]}  Kb6 {[%clk 0:00:29]} 57. Qc5+ {[%clk 0:00:03]}  Ka6 {[%clk 0:00:29]} 58. Qa5+ {[%clk 0:00:03]}  Kb7 {[%clk 0:00:28]} 59. Qb5+ {[%clk 0:00:04]}  Ka7 {[%clk 0:00:27]} 60. Kc7 {[%clk 0:00:04]} 1-0


[Site "https://www.chess.com"]

[Event "Titled Tuesday Blitz April 05 Early 2022"]
[White "Biletskiy, Danylo"]
[Black "Legenia, Artem"]
[WhiteFideId "14155419"]
[BlackFideId "14136945"]
[WhiteElo "2087"]
[BlackElo "1936"]
[Result "1-0"]
[Round "02"]
[TimeControl "180+1"]
[Date "2022.04.05"]
[WhiteClock "0:00:04"]
[BlackClock "0:01:04"]

1. e4 {[%clk 0:02:49]}  d5 {[%clk 0:02:57]} 2. exd5 {[%clk 0:02:50]}  Qxd5 {[%clk 0:02:56]} 3. Nc3 {[%clk 0:02:48]}  Qa5 {[%clk 0:02:56]} 4. Bc4 {[%clk 0:02:40]}  Nf6 {[%clk 0:02:56]} 5. d4 {[%clk 0:02:38]}  Nc6 {[%clk 0:02:54]} 6. Ne2 {[%clk 0:02:32]}  Bf5 {[%clk 0:02:51]} 7. h3 {[%clk 0:02:17]}  O-O-O {[%clk 0:02:50]} 8. Be3 {[%clk 0:02:17]}  e5 {[%clk 0:02:50]} 9. d5 {[%clk 0:02:16]}  Nb4 {[%clk 0:02:47]} 10. Bd2 {[%clk 0:02:13]}  Nxc2+ {[%clk 0:02:44]} 11. Kf1 {[%clk 0:02:10]}  Nxa1 {[%clk 0:02:44]} 12. Qxa1 {[%clk 0:02:10]}  Qc5 {[%clk 0:02:38]} 13. b3 {[%clk 0:02:08]}  Ne4 {[%clk 0:02:35]} 14. Nxe4 {[%clk 0:02:08]}  Bxe4 {[%clk 0:02:34]} 15. Be3 {[%clk 0:01:52]}  Qa5 {[%clk 0:02:07]} 16. Qxe5 {[%clk 0:01:17]}  Bg6 {[%clk 0:02:06]} 17. f3 {[%clk 0:01:03]}  Bc5 {[%clk 0:01:59]} 18. Bxc5 {[%clk 0:00:42]}  Qxc5 {[%clk 0:01:58]} 19. Qd4 {[%clk 0:00:43]}  Qxd4 {[%clk 0:01:50]} 20. Nxd4 {[%clk 0:00:44]}  c6 {[%clk 0:01:50]} 21. Kf2 {[%clk 0:00:44]}  cxd5 {[%clk 0:01:50]} 22. Be2 {[%clk 0:00:45]}  Rhe8 {[%clk 0:01:48]} 23. Rc1+ {[%clk 0:00:44]}  Kb8 {[%clk 0:01:48]} 24. Rc5 {[%clk 0:00:44]}  f6 {[%clk 0:01:40]} 25. a4 {[%clk 0:00:43]}  Bf7 {[%clk 0:01:40]} 26. Bb5 {[%clk 0:00:37]}  Re7 {[%clk 0:01:39]} 27. Nf5 {[%clk 0:00:32]}  Rc7 {[%clk 0:01:34]} 28. Rxc7 {[%clk 0:00:31]}  Kxc7 {[%clk 0:01:34]} 29. Nxg7 {[%clk 0:00:32]}  d4 {[%clk 0:01:33]} 30. Bd3 {[%clk 0:00:25]}  Bxb3 {[%clk 0:01:33]} 31. g4 {[%clk 0:00:23]}  Bxa4 {[%clk 0:01:33]} 32. Ne6+ {[%clk 0:00:22]}  Kd7 {[%clk 0:01:29]} 33. Nxd8 {[%clk 0:00:23]}  Kxd8 {[%clk 0:01:29]} 34. Bxh7 {[%clk 0:00:24]}  Bb5 {[%clk 0:01:26]} 35. Ke1 {[%clk 0:00:22]}  a5 {[%clk 0:01:24]} 36. Kd2 {[%clk 0:00:20]}  Bc4 {[%clk 0:01:24]} 37. Bd3 {[%clk 0:00:16]}  Bd5 {[%clk 0:01:24]} 38. Be2 {[%clk 0:00:12]}  Bc6 {[%clk 0:01:20]} 39. f4 {[%clk 0:00:08]}  Ke7 {[%clk 0:01:20]} 40. h4 {[%clk 0:00:08]}  b5 {[%clk 0:01:20]} 41. Kd3 {[%clk 0:00:07]}  a4 {[%clk 0:01:13]} 42. Kxd4 {[%clk 0:00:08]}  Kd6 {[%clk 0:01:08]} 43. g5 {[%clk 0:00:05]}  fxg5 {[%clk 0:01:08]} 44. fxg5 {[%clk 0:00:05]}  b4 {[%clk 0:01:07]} 45. Bc4 {[%clk 0:00:05]}  a3 {[%clk 0:01:05]} 46. g6 {[%clk 0:00:04]}  Ke7 {[%clk 0:01:04]} 47. g7 {[%clk 0:00:04]} 1-0


[Site "https://www.chess.com"]

[Event "Titled Tuesday Blitz April 05 Early 2022"]
[White "Brodowski, Piotr"]
[Black "Smirnov, Pavel"]
[WhiteFideId "1124480"]
[BlackFideId "4123425"]
[WhiteElo "2546"]
[BlackElo "2782"]
[Result "1/2-1/2"]
[Round "02"]
[TimeControl "180+1"]
[Date "2022.04.05"]
[WhiteClock "0:00:03"]
[BlackClock "0:00:04"]

1. c4 {[%clk 0:03:00]}  e6 {[%clk 0:02:46]} 2. Nf3 {[%clk 0:02:57]}  Nf6 {[%clk 0:02:44]} 3. b3 {[%clk 0:02:53]}  d5 {[%clk 0:02:42]} 4. Bb2 {[%clk 0:02:53]}  Be7 {[%clk 0:02:41]} 5. Qc2 {[%clk 0:02:49]}  O-O {[%clk 0:02:38]} 6. e3 {[%clk 0:02:49]}  c5 {[%clk 0:02:24]} 7. Nc3 {[%clk 0:02:36]}  Nc6 {[%clk 0:02:22]} 8. a3 {[%clk 0:01:55]}  d4 {[%clk 0:02:08]} 9. exd4 {[%clk 0:01:54]}  cxd4 {[%clk 0:02:01]} 10. Ne4 {[%clk 0:01:52]}  e5 {[%clk 0:01:57]} 11. Bd3 {[%clk 0:01:46]}  g6 {[%clk 0:01:53]} 12. Nxf6+ {[%clk 0:01:30]}  Bxf6 {[%clk 0:01:44]} 13. O-O {[%clk 0:01:31]}  Bg7 {[%clk 0:01:43]} 14. Be4 {[%clk 0:01:31]}  f5 {[%clk 0:01:33]} 15. Bd5+ {[%clk 0:00:59]}  Kh8 {[%clk 0:01:32]} 16. d3 {[%clk 0:00:48]}  Ne7 {[%clk 0:01:30]} 17. Rfe1 {[%clk 0:00:49]}  Nxd5 {[%clk 0:01:28]} 18. cxd5 {[%clk 0:00:50]}  Qxd5 {[%clk 0:01:28]} 19. Qc7 {[%clk 0:00:34]}  Rf7 {[%clk 0:01:23]} 20. Qc4 {[%clk 0:00:34]}  Be6 {[%clk 0:01:07]} 21. Nxe5 {[%clk 0:00:28]}  Re7 {[%clk 0:01:00]} 22. Qxd5 {[%clk 0:00:26]}  Bxd5 {[%clk 0:00:59]} 23. Nxg6+ {[%clk 0:00:26]}  hxg6 {[%clk 0:00:58]} 24. Rxe7 {[%clk 0:00:27]}  Kg8 {[%clk 0:00:56]} 25. Rc1 {[%clk 0:00:27]}  Rd8 {[%clk 0:00:53]} 26. Rec7 {[%clk 0:00:19]}  Bc6 {[%clk 0:00:50]} 27. b4 {[%clk 0:00:16]}  a6 {[%clk 0:00:46]} 28. R7xc6 {[%clk 0:00:14]}  bxc6 {[%clk 0:00:46]} 29. Rxc6 {[%clk 0:00:15]}  a5 {[%clk 0:00:42]} 30. b5 {[%clk 0:00:14]}  a4 {[%clk 0:00:38]} 31. Kf1 {[%clk 0:00:14]}  Rd5 {[%clk 0:00:37]} 32. Rxg6 {[%clk 0:00:11]}  Kf7 {[%clk 0:00:33]} 33. Rb6 {[%clk 0:00:09]}  Be5 {[%clk 0:00:30]} 34. g3 {[%clk 0:00:06]}  Rc5 {[%clk 0:00:30]} 35. Rb7+ {[%clk 0:00:06]}  Ke6 {[%clk 0:00:29]} 36. Rb6+ {[%clk 0:00:03]}  Kd5 {[%clk 0:00:27]} 37. Rc6 {[%clk 0:00:04]}  Rxb5 {[%clk 0:00:26]} 38. Rc2 {[%clk 0:00:05]}  Rb3 {[%clk 0:00:24]} 39. Ke2 {[%clk 0:00:06]}  Bd6 {[%clk 0:00:25]} 40. Bc1 {[%clk 0:00:02]}  Bxa3 {[%clk 0:00:24]} 41. Bxa3 {[%clk 0:00:03]}  Rxa3 {[%clk 0:00:24]} 42. h4 {[%clk 0:00:04]}  Rb3 {[%clk 0:00:23]} 43. Rc4 {[%clk 0:00:03]}  a3 {[%clk 0:00:21]} 44. Ra4 {[%clk 0:00:04]}  Rb2+ {[%clk 0:00:17]} 45. Kf3 {[%clk 0:00:04]}  a2 {[%clk 0:00:18]} 46. h5 {[%clk 0:00:04]}  Kc5 {[%clk 0:00:16]} 47. h6 {[%clk 0:00:04]}  Kb5 {[%clk 0:00:13]} 48. Ra8 {[%clk 0:00:04]}  Rb1 {[%clk 0:00:11]} 49. Rxa2 {[%clk 0:00:04]}  Rh1 {[%clk 0:00:11]} 50. Re2 {[%clk 0:00:05]}  Rxh6 {[%clk 0:00:11]} 51. Re5+ {[%clk 0:00:05]}  Kb4 {[%clk 0:00:11]} 52. Rxf5 {[%clk 0:00:06]}  Kc3 {[%clk 0:00:11]} 53. Ke4 {[%clk 0:00:06]}  Re6+ {[%clk 0:00:10]} 54. Kf3 {[%clk 0:00:03]}  Kxd3 {[%clk 0:00:10]} 55. g4 {[%clk 0:00:03]}  Kc4 {[%clk 0:00:10]} 56. Rf8 {[%clk 0:00:02]}  d3 {[%clk 0:00:10]} 57. Rd8 {[%clk 0:00:03]}  Kc3 {[%clk 0:00:10]} 58. g5 {[%clk 0:00:03]}  d2 {[%clk 0:00:09]} 59. Kg4 {[%clk 0:00:04]}  Kc2 {[%clk 0:00:09]} 60. f4 {[%clk 0:00:04]}  Re8 {[%clk 0:00:08]} 61. Rd7 {[%clk 0:00:04]}  Re7 {[%clk 0:00:06]} 62. Rd5 {[%clk 0:00:05]}  d1=Q+ {[%clk 0:00:06]} 63. Rxd1 {[%clk 0:00:04]}  Kxd1 {[%clk 0:00:06]} 64. f5 {[%clk 0:00:05]}  Ke2 {[%clk 0:00:07]} 65. f6 {[%clk 0:00:06]}  Re4+ {[%clk 0:00:05]} 66. Kf5 {[%clk 0:00:06]}  Kf3 {[%clk 0:00:05]} 67. g6 {[%clk 0:00:06]}  Rf4+ {[%clk 0:00:05]} 68. Ke5 {[%clk 0:00:06]}  Re4+ {[%clk 0:00:05]} 69. Kf5 {[%clk 0:00:07]}  Rf4+ {[%clk 0:00:05]} 70. Ke6 {[%clk 0:00:08]}  Re4+ {[%clk 0:00:05]} 71. Kd7 {[%clk 0:00:07]}  Rg4 {[%clk 0:00:03]} 72. g7 {[%clk 0:00:07]}  Ke4 {[%clk 0:00:03]} 73. Ke7 {[%clk 0:00:06]}  Ke5 {[%clk 0:00:04]} 74. Kf7 {[%clk 0:00:05]}  Kf5 {[%clk 0:00:03]} 75. Ke7 {[%clk 0:00:04]}  Ke5 {[%clk 0:00:03]} 76. Kf7 {[%clk 0:00:02]}  Kf5 {[%clk 0:00:04]} 77. g8=Q {[%clk 0:00:02]}  Rxg8 {[%clk 0:00:03]} 78. Kxg8 {[%clk 0:00:03]}  Kxf6 {[%clk 0:00:04]} 1/2-1/2


[Site "https://www.chess.com"]

[Event "Titled Tuesday Blitz April 05 Early 2022"]
[White "Chen, Qi b"]
[Black "Vasquez Schroeder, Rodrigo"]
[WhiteFideId "8614733"]
[BlackFideId "3400042"]
[WhiteElo "2432"]
[BlackElo "2561"]
[Result "1/2-1/2"]
[Round "02"]
[TimeControl "180+1"]
[Date "2022.04.05"]
[WhiteClock "0:00:18"]
[BlackClock "0:01:08"]

1. e4 {[%clk 0:03:00]}  c5 {[%clk 0:02:59]} 2. Nf3 {[%clk 0:03:00]}  d6 {[%clk 0:03:00]} 3. d4 {[%clk 0:03:00]}  cxd4 {[%clk 0:03:00]} 4. Nxd4 {[%clk 0:03:01]}  Nf6 {[%clk 0:03:00]} 5. Nc3 {[%clk 0:03:02]}  a6 {[%clk 0:03:01]} 6. Rg1 {[%clk 0:03:01]}  e5 {[%clk 0:02:53]} 7. Nb3 {[%clk 0:03:01]}  Be6 {[%clk 0:02:52]} 8. g4 {[%clk 0:02:56]}  h6 {[%clk 0:02:51]} 9. h4 {[%clk 0:02:51]}  d5 {[%clk 0:02:50]} 10. exd5 {[%clk 0:02:50]}  Nxd5 {[%clk 0:02:50]} 11. Nxd5 {[%clk 0:02:49]}  Qxd5 {[%clk 0:02:49]} 12. Qxd5 {[%clk 0:02:49]}  Bxd5 {[%clk 0:02:49]} 13. Be3 {[%clk 0:02:47]}  Nc6 {[%clk 0:02:44]} 14. O-O-O {[%clk 0:02:46]}  O-O-O {[%clk 0:02:39]} 15. Bb6 {[%clk 0:02:20]}  Rd7 {[%clk 0:02:38]} 16. Bd3 {[%clk 0:02:00]}  Be6 {[%clk 0:02:35]} 17. Nc5 {[%clk 0:01:55]}  Bxc5 {[%clk 0:02:34]} 18. Bxc5 {[%clk 0:01:56]}  Kc7 {[%clk 0:02:29]} 19. a3 {[%clk 0:01:43]}  f6 {[%clk 0:02:26]} 20. Rde1 {[%clk 0:01:39]}  g5 {[%clk 0:02:19]} 21. f3 {[%clk 0:01:06]}  Bd5 {[%clk 0:02:12]} 22. Ref1 {[%clk 0:00:55]}  b6 {[%clk 0:02:10]} 23. Be3 {[%clk 0:00:55]}  a5 {[%clk 0:02:06]} 24. Rh1 {[%clk 0:00:54]}  Rdd8 {[%clk 0:02:04]} 25. Rh3 {[%clk 0:00:52]}  Rhe8 {[%clk 0:01:43]} 26. Be4 {[%clk 0:00:52]}  Rd6 {[%clk 0:01:33]} 27. hxg5 {[%clk 0:00:45]}  hxg5 {[%clk 0:01:33]} 28. Rh7+ {[%clk 0:00:45]}  Re7 {[%clk 0:01:32]} 29. Rfh1 {[%clk 0:00:43]}  Red7 {[%clk 0:01:32]} 30. Rxd7+ {[%clk 0:00:42]}  Rxd7 {[%clk 0:01:30]} 31. Rh6 {[%clk 0:00:40]}  Bxe4 {[%clk 0:01:27]} 32. fxe4 {[%clk 0:00:40]}  Rf7 {[%clk 0:01:28]} 33. Rh8 {[%clk 0:00:28]}  Na7 {[%clk 0:01:26]} 34. c4 {[%clk 0:00:26]}  Nc8 {[%clk 0:01:25]} 35. c5 {[%clk 0:00:23]}  bxc5 {[%clk 0:01:21]} 36. Bxc5 {[%clk 0:00:24]}  Nd6 {[%clk 0:01:21]} 37. Bxd6+ {[%clk 0:00:21]}  Kxd6 {[%clk 0:01:22]} 38. Ra8 {[%clk 0:00:22]}  Rc7+ {[%clk 0:01:21]} 39. Kd2 {[%clk 0:00:22]}  Rc4 {[%clk 0:01:22]} 40. Kd3 {[%clk 0:00:21]}  Rd4+ {[%clk 0:01:21]} 41. Ke3 {[%clk 0:00:22]}  a4 {[%clk 0:01:22]} 42. Ra6+ {[%clk 0:00:22]}  Ke7 {[%clk 0:01:22]} 43. Rb6 {[%clk 0:00:22]}  Rc4 {[%clk 0:01:16]} 44. Rb4 {[%clk 0:00:22]}  Rc2 {[%clk 0:01:13]} 45. Rb7+ {[%clk 0:00:17]}  Ke6 {[%clk 0:01:12]} 46. Rb6+ {[%clk 0:00:17]}  Kf7 {[%clk 0:01:07]} 47. Rb7+ {[%clk 0:00:17]}  Kg6 {[%clk 0:01:07]} 48. Rb4 {[%clk 0:00:17]}  Kf7 {[%clk 0:01:07]} 49. Rb7+ {[%clk 0:00:17]}  Ke6 {[%clk 0:01:07]} 50. Rb6+ {[%clk 0:00:17]}  Ke7 {[%clk 0:01:07]} 51. Rb7+ {[%clk 0:00:18]}  Ke6 {[%clk 0:01:08]} 1/2-1/2


[Site "https://www.chess.com"]

[Event "Titled Tuesday Blitz April 05 Early 2022"]
[White "Darini, Pouria"]
[Black "Sergienko, Sergey"]
[WhiteFideId "12502200"]
[BlackFideId "4115791"]
[WhiteElo "2703"]
[BlackElo "2280"]
[Result "1/2-1/2"]
[Round "02"]
[TimeControl "180+1"]
[Date "2022.04.05"]
[WhiteClock "0:00:10"]
[BlackClock "0:00:12"]

1. d4 {[%clk 0:03:00]}  Nf6 {[%clk 0:02:59]} 2. Bg5 {[%clk 0:02:57]}  e6 {[%clk 0:02:58]} 3. Nd2 {[%clk 0:02:54]}  h6 {[%clk 0:02:57]} 4. Bxf6 {[%clk 0:02:51]}  Qxf6 {[%clk 0:02:57]} 5. c3 {[%clk 0:02:50]}  d5 {[%clk 0:02:55]} 6. e3 {[%clk 0:02:42]}  Qe7 {[%clk 0:02:51]} 7. f4 {[%clk 0:02:42]}  g6 {[%clk 0:02:50]} 8. Ngf3 {[%clk 0:02:41]}  Nd7 {[%clk 0:02:47]} 9. Bd3 {[%clk 0:02:41]}  Bg7 {[%clk 0:02:46]} 10. Qe2 {[%clk 0:02:30]}  O-O {[%clk 0:02:36]} 11. h4 {[%clk 0:02:29]}  h5 {[%clk 0:02:33]} 12. g4 {[%clk 0:02:08]}  hxg4 {[%clk 0:02:30]} 13. Ne5 {[%clk 0:02:08]}  Nxe5 {[%clk 0:02:11]} 14. fxe5 {[%clk 0:01:59]}  f5 {[%clk 0:02:02]} 15. exf6 {[%clk 0:02:00]}  Qxf6 {[%clk 0:02:02]} 16. O-O-O {[%clk 0:01:42]}  Bd7 {[%clk 0:01:46]} 17. Rdf1 {[%clk 0:01:36]}  Qe7 {[%clk 0:01:46]} 18. Qxg4 {[%clk 0:01:31]}  Rxf1+ {[%clk 0:01:45]} 19. Rxf1 {[%clk 0:01:27]}  Rf8 {[%clk 0:01:44]} 20. Rxf8+ {[%clk 0:01:21]}  Qxf8 {[%clk 0:01:43]} 21. Bxg6 {[%clk 0:01:04]}  Qf2 {[%clk 0:01:03]} 22. Kc2 {[%clk 0:00:13]}  Qxe3 {[%clk 0:01:00]} 23. h5 {[%clk 0:00:12]}  c5 {[%clk 0:00:54]} 24. dxc5 {[%clk 0:00:02]}  Bb5 {[%clk 0:00:42]} 25. Qf3 {[%clk 0:00:02]}  Qxf3 {[%clk 0:00:40]} 26. Nxf3 {[%clk 0:00:03]}  Be2 {[%clk 0:00:38]} 27. Nd4 {[%clk 0:00:03]}  Bg4 {[%clk 0:00:35]} 28. c6 {[%clk 0:00:03]}  bxc6 {[%clk 0:00:33]} 29. Nxc6 {[%clk 0:00:04]}  a6 {[%clk 0:00:31]} 30. b4 {[%clk 0:00:04]}  Kf8 {[%clk 0:00:30]} 31. Nb8 {[%clk 0:00:04]}  Be2 {[%clk 0:00:29]} 32. a4 {[%clk 0:00:04]}  Ke7 {[%clk 0:00:27]} 33. Kd2 {[%clk 0:00:02]}  Bf1 {[%clk 0:00:26]} 34. Bd3 {[%clk 0:00:02]}  Bh6+ {[%clk 0:00:22]} 35. Kc2 {[%clk 0:00:03]}  Bh3 {[%clk 0:00:20]} 36. Bxa6 {[%clk 0:00:03]}  Bg4 {[%clk 0:00:20]} 37. a5 {[%clk 0:00:03]}  Kd6 {[%clk 0:00:17]} 38. Bb7 {[%clk 0:00:03]}  Kc7 {[%clk 0:00:17]} 39. Nc6 {[%clk 0:00:01]}  Kxb7 {[%clk 0:00:17]} 40. Nd8+ {[%clk 0:00:01]}  Ka6 {[%clk 0:00:16]} 41. Nf7 {[%clk 0:00:01]}  Bf4 {[%clk 0:00:14]} 42. h6 {[%clk 0:00:02]}  Bf5+ {[%clk 0:00:14]} 43. Kb3 {[%clk 0:00:02]}  e5 {[%clk 0:00:14]} 44. Nd6 {[%clk 0:00:02]}  Bh7 {[%clk 0:00:13]} 45. Ka4 {[%clk 0:00:02]}  Bc2+ {[%clk 0:00:12]} 46. Ka3 {[%clk 0:00:02]}  Bxh6 {[%clk 0:00:12]} 47. Nf7 {[%clk 0:00:01]}  Bf4 {[%clk 0:00:11]} 48. Nd8 {[%clk 0:00:02]}  e4 {[%clk 0:00:10]} 49. Nc6 {[%clk 0:00:02]}  e3 {[%clk 0:00:09]} 50. b5+ {[%clk 0:00:03]}  Kxb5 {[%clk 0:00:08]} 51. Nd4+ {[%clk 0:00:03]}  Kxa5 {[%clk 0:00:09]} 52. Nxc2 {[%clk 0:00:03]}  Kb5 {[%clk 0:00:09]} 53. Kb3 {[%clk 0:00:02]}  e2 {[%clk 0:00:09]} 54. Nd4+ {[%clk 0:00:03]}  Kc5 {[%clk 0:00:09]} 55. Nxe2 {[%clk 0:00:04]}  Be5 {[%clk 0:00:09]} 56. Kc2 {[%clk 0:00:04]}  Bxc3 {[%clk 0:00:10]} 57. Kxc3 {[%clk 0:00:05]}  d4+ {[%clk 0:00:10]} 58. Kd3 {[%clk 0:00:05]}  Kd5 {[%clk 0:00:10]} 59. Ng3 {[%clk 0:00:06]}  Kd6 {[%clk 0:00:11]} 60. Nf1 {[%clk 0:00:07]}  Kc7 {[%clk 0:00:11]} 61. Nd2 {[%clk 0:00:08]}  Kb8 {[%clk 0:00:11]} 62. Nb3 {[%clk 0:00:09]}  Kc8 {[%clk 0:00:12]} 63. Nxd4 {[%clk 0:00:10]} 1/2-1/2


[Site "https://www.chess.com"]

[Event "Titled Tuesday Blitz April 05 Early 2022"]
[White "Diaz Rosas, Julio Cesar"]
[Black "Miszler, Levente"]
[WhiteFideId "5105099"]
[BlackFideId "763276"]
[WhiteElo "2278"]
[BlackElo "1966"]
[Result "1-0"]
[Round "02"]
[TimeControl "180+1"]
[Date "2022.04.05"]
[WhiteClock "0:02:09"]
[BlackClock "0:02:04"]

1. d4 {[%clk 0:03:00]}  e6 {[%clk 0:03:00]} 2. c4 {[%clk 0:03:00]}  Nf6 {[%clk 0:02:59]} 3. Nc3 {[%clk 0:03:00]}  d5 {[%clk 0:02:59]} 4. cxd5 {[%clk 0:02:59]}  exd5 {[%clk 0:03:00]} 5. e3 {[%clk 0:02:59]}  c6 {[%clk 0:02:57]} 6. Bd3 {[%clk 0:02:59]}  Bd6 {[%clk 0:02:57]} 7. Qc2 {[%clk 0:02:59]}  h6 {[%clk 0:02:56]} 8. Nge2 {[%clk 0:03:00]}  Be6 {[%clk 0:02:57]} 9. O-O {[%clk 0:03:00]}  Nbd7 {[%clk 0:02:57]} 10. Bd2 {[%clk 0:02:58]}  Qc7 {[%clk 0:02:57]} 11. h3 {[%clk 0:02:54]}  O-O {[%clk 0:02:51]} 12. Rab1 {[%clk 0:02:53]}  Rfe8 {[%clk 0:02:40]} 13. b4 {[%clk 0:02:52]}  Rac8 {[%clk 0:02:28]} 14. Nf4 {[%clk 0:02:45]}  b6 {[%clk 0:02:24]} 15. Rfe1 {[%clk 0:02:34]}  c5 {[%clk 0:02:21]} 16. Nb5 {[%clk 0:02:33]}  Qb8 {[%clk 0:02:19]} 17. bxc5 {[%clk 0:02:33]}  bxc5 {[%clk 0:02:18]} 18. Nxe6 {[%clk 0:02:23]}  Rxe6 {[%clk 0:02:19]} 19. Bf5 {[%clk 0:02:23]}  Re7 {[%clk 0:02:09]} 20. Rec1 {[%clk 0:02:10]}  c4 {[%clk 0:02:05]} 21. Nxd6 {[%clk 0:02:09]}  Qxd6 {[%clk 0:02:04]} 22. Bb4 {[%clk 0:02:09]} 1-0


[Site "https://www.chess.com"]